Workbook

Sheet H0 PILs,Tax Provision Hist
C6: PILs Tax Provision - Historical Year
C7: BELOW ARE FORECASTED AMOUNT. THIS SCHEDULE WILL BE UPDATED ONCE 2023 TAX RETURN IS FILED IN JUNE 2024.
C8: Note: Input the actual information from the tax returns for the historical year. | I8: Wires Only
C10: Regulatory Taxable Income | H10: H1 | I10: ='H1 Sch 1 Taxable Income Hist'!G115 -> 17420762 | J10: A
C12: Ontario Income Taxes
C13: Income tax payable | D13: Ontario Income Tax | F13: B | H13: C = A * B
C15: Small business credit | D15: Ontario Small Business Threshold | E15: =IF(I10>#REF!,#REF!,0) ->  | F15: D
D16: Rate reduction (negative) | F16: E | H16: F = D * E
C20: Ontario Income tax | I20: =SUM(G13:G19) -> 0 | J20: J = C + F
C23: Combined Tax Rate and PILs | D23: Ontario Tax Rate (Maximum 11.5%) | G23: 0.115 | H23: B
D24: Federal tax rate (Maximum 15%) | G24: 0.15 | H24: C
D25: Combined tax rate (Maximum 26.5%) | I25: =SUM(G23:G24) -> 0.265 | J25: D = B+C
C28: Total Income Taxes | I28: =I10*I25 -> 4616501.93 | J28: E = A * D
C30: Investment Tax Credits | I30: 1503000 | J30: F
C31: Miscellaneous Tax Credits | I31: 933000 | J31: G
C32: Total Tax Credits | I32: =SUM(I30:I31) -> 2436000 | J32: H = F + G
C34: Corporate PILs/Income Tax Provision for Historical Year | I34: =IF(I28-I32<0,0,I28-I32) -> 2180501.93 | J34: I = E - H

Sheet H1 Sch 1 Taxable Income Hist
C8: Adjusted Taxable Income - Historical Year
C9: BELOW ARE FORECASTED AMOUNTS. THIS SCHEDULE WILL BE UPDATED ONCE 2023 TAX RETURN IS FILED IN JUNE 2024.
D11: T2S1 line # | E11: Total for Legal Entity | F11: Non-Distribution Eliminations | G11: Historic Wires Only
C12: Income before PILs/Taxes | D12: (A + 101 + 102) | E12: 166198562 | F12: -1514523 | G12: =+E12-F12 -> 167713085
C13: Additions:
C14: Interest and penalties on taxes | D14: 103 | G14: =+E14-F14 -> 0
C15: Amortization of tangible assets | D15: 104 | E15: 263865704 | F15: 3999922 | G15: 259865782
C16: Amortization of intangible assets | D16: 106 | G16: 0
C17: Recapture of capital cost allowance from Schedule 8 | D17: 107 | G17: 0
C18: Income inclusion under subparagraph 13(38)(d)(iii) from Schedule 10 | D18: 108 | G18: 0
C19: Loss in equity of subsidiaries and affiliates | D19: 110 | G19: 0
C20: Loss on disposal of assets | D20: 111 | G20: 0
C21: Charitable donations and gifts from Schedule 2 | D21: 112 | G21: 0
C22: Taxable capital gains from Schedule 6 | D22: 113 | E22: 6970233 | G22: 6970233
C23: Political contributions | D23: 114 | G23: 0
C24: Deferred and prepaid expenses | D24: 116 | G24: 0
C25: Scientific research expenditures deducted on financial statements | D25: 118 | G25: 0
C26: Capitalized interest | D26: 119 | G26: 0
C27: Non-deductible club dues and fees | D27: 120 | E27: 547981 | F27: 5008 | G27: 542973
C28: Non-deductible meals and entertainment expense | D28: 121 | E28: 132141 | F28: 951 | G28: 131190
C29: Non-deductible automobile expenses | D29: 122 | G29: 0
C30: Non-deductible life insurance premiums | D30: 123 | G30: 0
C31: Non-deductible company pension plans | D31: 124 | G31: 0
C32: Tax reserves deducted in prior year | D32: 125 | G32: 0
C33: Reserves from financial statements – balance at the end of the year | D33: 126 | E33: 256002254 | F33: 1528000 | G33: 254474254
C34: Soft costs on construction and renovation of buildings | D34: 127 | G34: 0
C35: Capital items expensed | D35: 206 | G35: 0
C36: Debt issue expense | D36: 208 | G36: 0
C37: Development expenses claimed in current year | D37: 212 | G37: 0
C38: Financing fees deducted in books | D38: 216 | E38: 1228537 | G38: 1228537
C39: Gain on settlement of debt | D39: 220 | G39: 0
C40: Non-deductible advertising | D40: 226 | G40: 0
C41: Non-deductible interest | D41: 227 | G41: 0
C42: Non-deductible legal and accounting fees | D42: 228 | G42: 0
C43: Recapture of SR&ED expenditures | D43: 231 | G43: 0
C44: Share issue expense | D44: 235 | G44: 0
C45: Write down of capital property | D45: 236 | G45: 0
C46: Amounts received in respect of qualifying environment trust per paragraphs 12(1)(z.1) and 12(1)(z.2) | D46: 237 | G46: 0
C47: Other additions
C48: Interest Expensed on Capital Leases | D48: 295 | E48: 3302 | G48: 3302
C49: Realized Income from Deferred Credit Accounts | D49: 295 | G49: 0
C50: Pensions | D50: 295 | G50: 0
C51: Non-deductible penalties | D51: 295 | G51: 0
C52: Other taxable amount | D52: 295 | E52: 228 | G52: 228
D53: 295 | G53: =+E53-F53 -> 0
C54: ARO Accretion expense | E54: 6337 | G54: 6337
C55: Capital Contributions Received (ITA 12(1)(x)) | E55: 96289047 | G55: 96289047
C56: Lease Inducements Received (ITA 12(1)(x)) | G56: 0
C57: Deferred Revenue (ITA 12(1)(a)) | E57: 15623625 | F57: 10939172 | G57: 4684453
C58: Prior Year Investment Tax Credits received | G58: 0
C59: Regulatory item adjustments | E59: 16137688 | G59: 16137688
C60: Deferred CIR costs amortized for accounting | E60: 1633283 | G60: 1633283
G61: 0
G62: 0
G63: 0
G64: 0
G65: 0
G66: 0
G67: 0
G68: 0
C69: Total Additions | E69: =SUM(E13:E68) -> 658440360 | F69: =SUM(F13:F68) -> 16473053 | G69: =SUM(G13:G68) -> 641967307
C71: Deductions:
C72: Gain on disposal of assets per financial statements | D72: 401 | E72: 1703438 | F72: 4741 | G72: =+E72-F72 -> 1698697
C73: Non-taxable dividends under section 83 | D73: 402 | G73: 0
C74: Capital cost allowance from Schedule 8 | D74: 403 | E74: 414421330 | F74: =-6545+5318+149419 -> 148192 | G74: 414273138
C75: Terminal loss from Schedule 8 | D75: 404 | G75: 0
C76: Allowable business investment loss | D76: 406 | G76: 0
C77: Deferred and prepaid expenses | D77: 409 | G77: 0
C78: Scientific research expenses claimed in year | D78: 411 | G78: 0
C79: Tax reserves claimed in current year | D79: 413 | G79: 0
C80: Reserves from financial statements - balance at beginning of year | D80: 414 | E80: 235183558 | F80: 1357000 | G80: 233826558
C81: Contributions to deferred income plans | D81: 416 | G81: 0
C82: Book income of joint venture or partnership | D82: 305 | G82: 0
C83: Equity in income from subsidiary or affiliates | D83: 306 | G83: 0
C84: Other deductions
C85: Interest capitalized for accounting deducted for tax | D85: 395 | G85: 0
C86: Capital Lease Payments | D86: 395 | E86: 47420 | G86: 47420
C87: Non-taxable imputed interest income on deferral and variance accounts | D87: 395 | G87: 0
C88: Reversal of prior year accounting land write off recorded in OPEX, not taxable | D88: 395 | E88: 454416 | G88: 454416
C89: Other non taxable amount | D89: 395 | E89: 40290 | G89: 40290
C90: ARO Payments - Deductible for Tax when Paid | E90: 134568 | G90: 134568
C91: ITA 13(7.4) Election - Capital Contributions Received | E91: =+E55 -> 96289047 | G91: 96289047
C92: ITA 13(7.4) Election - Apply Lease Inducement to cost of Leaseholds | G92: 0
C93: Deferred Revenue - ITA 20(1)(m) reserve | E93: =+E57 -> 15623625 | F93: =+F57 -> 10939172 | G93: 4684453
C94: Principal portion of lease payments | G94: 0
C95: Lease Inducement Book Amortization credit to income | G95: 0
C96: Financing fees for tax ITA 20(1)(e) and (e.1) | E96: 2566701 | G96: 2566701
C97: Land Lease payment capitalized for accounting | E97: 89423 | G97: 89423
C98: Other Post-Employment Benefits adjustment - change in balance with no Income Statement Impact | E98: =95000+710000+19024000 -> 19829000 | F98: 209000 | G98: 19620000
C99: Other Post-Employment Benefits adjustment - current year capitalized portion with no Income Statement Impact | E99: 5928377 | G99: 5928377
C100: Prior year Investment Tax Credits taxed in prior year | E100: =315279-53725+1187939+853704 -> 2303197 | G100: 2303197
C101: Amortization of contributed capital received recorded in other revenue | G101: 0
C102: Deferred CIR costs deductible for tax | E102: 2943592 | G102: 2943592
C103: AFUDC income that is not taxable | E103: 7359753 | G103: 7359753
C104: Reverse realized deferred revenue for the year, capitalized for tax in prior year | E104: 1251574 | F104: 1251574 | G104: 0
C105: Total Deductions | E105: =SUM(E72:E104) -> 806169309 | F105: =SUM(F72:F104) -> 13909679 | G105: =SUM(G72:G104) -> 792259630
C107: Net Income for Tax Purposes | E107: =+E12+E69-E105 -> 18469613 | F107: =+F12+F69-F105 -> 1048851 | G107: =+G12+G69-G105 -> 17420762
C109: Charitable donations from Schedule 2 | D109: 311 | G109: =+E109-F109 -> 0
C110: Taxable dividends received under section 112 or 113 | D110: 320 | G110: =+E110-F110 -> 0
C111: Non-capital losses of previous tax years from Schedule 4 | D111: 331 | G111: =+E111-F111 -> 0
C112: Net capital losses of previous tax years from Schedule 4 | D112: 332 | G112: =+E112-F112 -> 0
C113: Limited partnership losses of previous tax years from Schedule 4 | D113: 335 | G113: =+E113-F113 -> 0
C115: TAXABLE INCOME | E115: =+E107-SUM(E109:E113) -> 18469613 | F115: =+F107-SUM(F109:F113) -> 1048851 | G115: =+G107-SUM(G109:G113) -> 17420762 | H115: H0

Sheet H4 Sch 4 Loss Cfwd Hist
C7: NO LOSS CARRYFORWARDS ARE FORECASTED. THIS SCHEDULE WILL BE UPDATED ONCE 2023 TAX RETURN IS FILED IN JUNE 2024.
C9: Schedule 4 Loss Carry Forward - Historical
C11: Corporation Loss Continuity and Application
C13: Non-Capital Loss Carry Forward Deduction | F13: Total | G13: Non-Distribution Portion | H13: Utility Balance
C14: Actual Historical | H14: =F14-G14 -> 0 | I14: B4
C16: Net Capital Loss Carry Forward Deduction | F16: Total | G16: Non-Distribution Portion | H16: Utility Balance
C17: Actual Historical | H17: =F17-G17 -> 0 | I17: B4

Sheet H8 Sch 8 CCA Hist
C6: Schedule 8 - Historical Year
C8: BELOW ARE FORECASTED AMOUNTS. THIS SCHEDULE WILL BE UPDATED ONCE 2023 TAX RETURN IS FILED IN JUNE 2024.
C11: Class | D11: Class Description | E11: UCC End of Year Historical per tax returns | F11: Less: Non-Distribution Portion | G11: UCC Regulated Historical Year | H11: Working Paper Reference
C12: 1 | D12: Buildings, Distribution System (acq'd post 1987) | E12: =886420741+26550812 -> 912971553 | G12: =+E12-F12 -> 912971553 | H12: B8
C13: 1b | D13: Non-Residential Buildings [Reg. 1100(1)(a.1) election] | G13: =+E13-F13 -> 0 | H13: B8
C14: 2 | D14: Distribution System (acq'd pre 1988) | E14: 166817528 | G14: =+E14-F14 -> 166817528 | H14: B8
C15: 3 | D15: Buildings (acq'd pre 1988) | G15: 0 | H15: B8
C16: 6 | D16: Certain Buildings; Fences | E16: 2111584 | G16: =+E16-F16 -> 2111584 | H16: B8
C17: 8 | D17: General Office Equipment, Furniture, Fixtures | E17: =20612168-25719+258+0 -> 20586707 | F17: -25719 | G17: 20612426 | H17: B8
C18: 10 | D18: Motor Vehicles, Fleet | E18: =6547767+9729 -> 6557496 | F18: 9729 | G18: 6547767 | H18: B8
C19: 10.1 | D19: Certain Automobiles | E19: =4285*8 -> 34280 | G19: 34280 | H19: B8
C20: 12 | D20: Computer Application Software (Non-Systems) | E20: 14820 | G20: 14820 | H20: B8
C21: 13 1 | D21: Lease # 1 | E21: 96922 | G21: 96922 | H21: B8
C22: 13 2 | D22: Lease # 2 | E22: 10880 | G22: 10880 | H22: B8
C23: 13 3 | D23: Lease # 3 | E23: 0 | G23: 0 | H23: B8
C24: 13 4 | D24: Lease # 4 | G24: 0 | H24: B8
C25: 14 | D25: Limited Period Patents, Franchises, Concessions or Licences | G25: 0 | H25: B8
C26: 14.1 | D26: Eligible Capital Property (acq'd pre 2017) | E26: =31133391 -> 31133391 | G26: =+E26-F26 -> 31133391 | H26: B8
C27: 14.1 | D27: Eligible Capital Property (acq'd post 2016) | E27: 143953241 | G27: =+E27-F27 -> 143953241 | H27: B8
C28: 17 | D28: Elec. Generation Equip. (Non-Bldng, acq'd post Feb 27/00); Roads, Lots, Storage | E28: 20661670 | G28: 20661670 | H28: B8
C29: 42 | D29: Fibre Optic Cable | E29: 11656889 | G29: =+E29-F29 -> 11656889 | H29: B8
C30: 43.1 | D30: Certain Clean Energy/Energy-Efficient Generation Equipment | E30: 8623 | G30: 8623 | H30: B8
C31: 43.2 | D31: Certain Clean Energy/Energy-Efficient Generation Equipment | E31: 51990 | F31: 51990 | G31: 0 | H31: B8
C32: 45 | D32: Computers & System Software (acq'd post Mar 22/04 and pre Mar 19/07) | E32: 207 | G32: 207 | H32: B8
C33: 46 | D33: Data Network Infrastructure Equipment (acq'd post Mar 22/04) | E33: =4615966-110 -> 4615856 | F33: -110 | G33: 4615966 | H33: B8
C34: 47 | D34: Distribution System (acq'd post Feb 22/05) | E34: =3027465778+19779970+1634977+61163 -> 3048941888 | F34: =1634977+61163 -> 1696140 | G34: 3047245748 | H34: B8
C35: 50 | D35: General Purpose Computer Hardware & Software (acq'd post Mar 18/07) | E35: =4996766+1+5967 -> 5002734 | F35: =1+5967 -> 5968 | G35: 4996766 | H35: B8
C36: 95 | D36: CWIP | E36: =481282199-170154 -> 481112045 | F36: -170154 | G36: 481282199 | H36: B8
G37: 0
G38: 0
G39: 0
G40: 0
G41: 0
G42: 0
G43: 0
G44: 0
D45: SUB-TOTAL - UCC | E45: =SUM(E12:E44) -> 4856340304 | F45: =SUM(F12:F44) -> 1567844 | G45: =SUM(G12:G44) -> 4854772460

Sheet H13 Sch 13 Reserves Hist
C8: Schedule 13 Tax Reserves - Historical
C10: Continuity of Reserves
C11: BELOW ARE FORECASTED AMOUNTS. THIS SCHEDULE WILL BE UPDATED ONCE 2023 TAX RETURN IS FILED IN JUNE 2024.
C13: Description | D13: Historical Balance as per tax returns | E13: Non-Distribution Eliminations | F13: Utility Only
C15: Capital gains reserves ss.40(1) | D15: 21240453 | F15: =D15-E15 -> 21240453 | G15: B13
C16: Tax reserves not deducted for accounting purposes
C17: Reserve for doubtful accounts ss. 20(1)(l) | F17: =D17-E17 -> 0 | G17: B13
C18: Reserve for undelivered goods and services not rendered ss. 20(1)(m) | F18: 0 | G18: B13
C19: Reserve for unpaid amounts ss. 20(1)(n) | F19: 0 | G19: B13
C20: Debt & share issue expenses ss. 20(1)(e) | F20: 0 | G20: B13
C21: Other tax reserves | F21: 0 | G21: B13
F22: 0
F23: 0
F24: 0
F25: 0
F26: 0
C27: Total | D27: =SUM(D17:D26) -> 0 | E27: =SUM(E17:E26) -> 0 | F27: =SUM(F17:F26) -> 0
C29: Financial Statement Reserves (not deductible for Tax Purposes)
C30: General reserve for inventory obsolescence (non-specific) | F30: =D30-E30 -> 0 | G30: B13
C31: General reserve for bad debts | F31: 0 | G31: B13
C32: Accrued Employee Future Benefits: | F32: 0 | G32: B13
C33: - Medical and Life Insurance | F33: 0 | G33: B13
C34: -Short & Long-term Disability | F34: 0 | G34: B13
C35: -Accmulated Sick Leave | F35: 0 | G35: B13
C36: - Termination Cost | D36: 3836254 | F36: 3836254 | G36: B13
C37: - Other Post-Employment Benefits | D37: =250638000+1528000 -> 252166000 | E37: 1528000 | F37: 250638000 | G37: B13
C38: Provision for Environmental Costs | F38: 0 | G38: B13
C39: Restructuring Costs | F39: 0 | G39: B13
C40: Accrued Contingent Litigation Costs | F40: 0 | G40: B13
C41: Accrued Self-Insurance Costs | F41: 0 | G41: B13
C42: Other Contingent Liabilities | F42: 0 | G42: B13
C43: Bonuses Accrued and Not Paid Within 180 Days of Year-End ss. 78(4) | F43: 0 | G43: B13
C44: Unpaid Amounts to Related Person and Not Paid Within 3 Taxation Years ss. 78(1) | F44: 0 | G44: B13
C45: Other | F45: 0 | G45: B13
F49: 0
F50: 0
C51: Total | D51: =SUM(D30:D50) -> 256002254 | E51: =SUM(E30:E50) -> 1528000 | F51: =SUM(F30:F50) -> 254474254

Sheet B0 PILs,Tax Provision Bridge
B6: PILS Tax Provision - Bridge Year
J8: Wires Only
I9: Reference
C10: Regulatory Taxable Income | I10: B1 | J10: ='B1 Sch 1 Taxable Income Bridge'!F111 -> 29932090.26 | K10: A | L10: /C
D12: Tax Rate | E12: Small Business Rate (If Applicable) | F12: Taxes Payable | G12: Effective Tax Rate
C13: Ontario (Max 11.5%) | D13: 0.115 | E13: =+D13 -> 0.115 | F13: =IF(J10<500000,J10,500000)*E13+IF(J10>500000,J10-500000,0)*D13 -> 3442190.38 | G13: =IF(F13=0,0,+F13/J10) -> 0.115 | H13: B
C14: Federal (Max 15%) | D14: 0.15 | E14: =+D14 -> 0.15 | F14: =E14*IF(J10<500000,J10,500000)+IF(J10>500000,J10-500000,0)*D14 -> 4489813.54 | G14: =IF(F14=0,0,+F14/J10) -> 0.15 | H14: C
C16: Combined effective tax rate (Max 26.5%) | J16: =SUM(G13:G14) -> 0.265 | K16: D = B + C
C19: Total Income Taxes | J19: =IF(J10*J16<0,0,J10*J16) -> 7932003.92 | K19: E = A * D | L19: /C
C21: Investment Tax Credits | J21: 1503000 | K21: F
C22: Miscellaneous Tax Credits | J22: 933000 | K22: G
C23: Total Tax Credits | J23: =SUM(J21:J22) -> 2436000 | K23: H = F + G
C25: Corporate PILs/Income Tax Provision for Bridge Year | J25: =IF(J19-J23<0,0,J19-J23) -> 5496003.92 | K25: I = E - H | L25: /C
C27: Corporate PILs/Income Tax Provision Gross Up 1 | H27: =(1-J16) -> 0.735 | I27: J = 1-D | J27: =J25/H27-J25 -> 1981552.434 | K27: K = I/J-I | L27: /C
C30: Income Tax (grossed-up) before tax credits reclass to OM&A | J30: =J25+J27 -> 7477556.354 | K30: L = K + I | L30: /C
C31: Tax credits reclass to OM&A | J31: 2457000 | K31: M
C32: Tax credits reclass to OM&A - gross up | H32: =(1-J16) -> 0.735 | I32: J = 1-D | J32: =J31/H32-J31 -> 885857.1429 | K32: N
C33: Income Tax (grossed-up) after tax credits reclass to OM&A | J33: =+J30+J31+J32 -> 10820413.5 | K33: O = L + M + N | L33: /C
C37: Note:
C38: 1. This is for the derivation of Bridge year PILs income tax expense and should not be used for Test year revenue requirement calculations.

Sheet B1 Sch 1 Taxable Income Bridge
B5: Adjusted Taxable Income - Bridge Year
D7: T2S1 line # | E7: Working Paper Reference | F7: Total for Regulated Utility
C8: Income before PILs/Taxes | D8: (A + 101 + 102) | F8: 189393427 | G8: /C
C10: Additions:
C11: Interest and penalties on taxes | D11: 103
C12: Amortization of tangible assets | D12: 104 | F12: 276564046 | G12: /C
C13: Amortization of intangible assets | D13: 106
C14: Recapture of capital cost allowance from Schedule 8 | D14: 107 | E14: B8 | F14: ='B8 Sch 8 CCA Bridge'!S43 -> 0
C15: Income inclusion under subparagraph 13(38)(d)(iii) | D15: 108
C16: Income or loss for tax purposes- joint ventures or partnerships | D16: 109
C17: Loss in equity of subsidiaries and affiliates | D17: 110
C18: Loss on disposal of assets | D18: 111
C19: Charitable donations and gifts from Schedule 2 | D19: 112
C20: Taxable capital gains | D20: 113
C21: Political contributions | D21: 114
C22: Deferred and prepaid expenses | D22: 116
C23: Scientific research expenditures deducted on financial statements | D23: 118
C24: Capitalized interest | D24: 119
C25: Non-deductible club dues and fees | D25: 120 | F25: 340000
C26: Non-deductible meals and entertainment expense | D26: 121 | F26: 27000
C27: Non-deductible automobile expenses | D27: 122
C28: Non-deductible life insurance premiums | D28: 123
C29: Non-deductible company pension plans | D29: 124
C30: Tax reserves deducted in prior year | D30: 125 | E30: B13 | F30: ='B13 Sch 13 Reserves Bridge'!G22 -> 0
C31: Reserves from financial statements- balance at end of year | D31: 126 | E31: B13 | F31: ='B13 Sch 13 Reserves Bridge'!K43 -> 255780337 | G31: /C
C32: Soft costs on construction and renovation of buildings | D32: 127
C33: Capital items expensed | D33: 206
C34: Debt issue expense | D34: 208
C35: Development expenses claimed in current year | D35: 212
C36: Financing fees deducted in books | D36: 216 | F36: 1263080
C37: Gain on settlement of debt | D37: 220
C38: Non-deductible advertising | D38: 226
C39: Non-deductible interest | D39: 227
C40: Non-deductible legal and accounting fees | D40: 228
C41: Recapture of SR&ED expenditures | D41: 231
C42: Share issue expense | D42: 235
C43: Write down of capital property | D43: 236
C44: Amounts received in respect of qualifying environment trust per paragraphs 12(1)(z.1) and 12(1)(z.2) | D44: 237
C45: Other Additions
C46: Interest Expensed on Capital Leases | D46: 295 | F46: 2371
C47: Realized Income from Deferred Credit Accounts | D47: 295
C48: Pensions | D48: 295
C49: Non-deductible penalties | D49: 295
D50: 295
D51: 295
C52: ARO Accretion expense | F52: 2119
C53: Capital Contributions Received (ITA 12(1)(x)) | F53: 204799734 | G53: /C
C54: Lease Inducements Received (ITA 12(1)(x))
C55: Deferred Revenue (ITA 12(1)(a)) | F55: 3061822
C56: Prior Year Investment Tax Credits received | F56: 2436000
C67: Total Additions | F67: =SUM(F10:F66) -> 744276509 | G67: /C
C68: Deductions:
C69: Gain on disposal of assets per financial statements | D69: 401
C70: Dividends not taxable under section 83 | D70: 402
C71: Capital cost allowance from Schedule 8 | D71: 403 | E71: B8 | F71: ='B8 Sch 8 CCA Bridge'!U43 -> 432103922.7 | G71: /C
C72: Terminal loss from Schedule 8 | D72: 404 | E72: B8 | F72: ='B8 Sch 8 CCA Bridge'!T43 -> 0
C73: Allowable business investment loss | D73: 406
C74: Deferred and prepaid expenses | D74: 409
C75: Scientific research expenses claimed in year | D75: 411
C76: Tax reserves claimed in current year | D76: 413 | E76: B13 | F76: ='B13 Sch 13 Reserves Bridge'!K22 -> 0
C77: Reserves from financial statements - balance at beginning of year | D77: 414 | E77: B13 | F77: ='B13 Sch 13 Reserves Bridge'!G43 -> 254474254 | G77: /C
C78: Contributions to deferred income plans | D78: 416
C79: Book income of joint venture or partnership | D79: 305
C80: Equity in income from subsidiary or affiliates | D80: 306
C81: Other deductions
C82: Interest capitalized for accounting deducted for tax | D82: 395
C83: Capital Lease Payments | D83: 395 | F83: 48449
C84: Non-taxable imputed interest income on deferral and variance accounts | D84: 395
D85: 395
D86: 395
C87: ARO Payments - Deductible for Tax when Paid | F87: 38656
C88: ITA 13(7.4) Election - Capital Contributions Received | F88: =+F53 -> 204799734 | G88: /C
C89: ITA 13(7.4) Election - Apply Lease Inducement to cost of Leaseholds
C90: Deferred Revenue - ITA 20(1)(m) reserve | F90: =+F55 -> 3061822
C91: Principal portion of lease payments
C92: Lease Inducement Book Amortization credit to income
C93: Financing fees for tax ITA 20(1)(e) and (e.1) | F93: 2318745
C94: Land Lease payment capitalized for accounting | F94: 89423
C95: Other Post-Employment Benefits adjustment - change in balance with no Income Statement Impact | F95: 358000
C96: Other Post-Employment Benefits adjustment - current year capitalized portion with no Income Statement Impact | F96: 6444840
C102: Total Deductions | E102: calculated | F102: =SUM(F69:F101) -> 903737845.7 | G102: /C
C104: Net Income for Tax Purposes | E104: calculated | F104: =+F8+F67-F102 -> 29932090.26 | G104: /C
C105: Charitable donations | D105: 311
C106: Taxable dividends received under section 112 or 113 | D106: 320
C107: Non-capital losses of previous tax years from Schedule 4 | D107: 331 | E107: B4 | F107: ='B4 Sch 4 Loss Cfwd Bridge'!G13*-1 -> 0
C108: Net capital losses of previous tax years from Schedule 4 | D108: 332 | E108: B4 | F108: ='B4 Sch 4 Loss Cfwd Bridge'!G20*-1 -> 0
C109: Limited partnership losses of previous tax years from Schedule 4 | D109: 335
C111: TAXABLE INCOME | E111: calculated | F111: =SUM(F104:F109) -> 29932090.26 | G111: /C

Sheet B4 Sch 4 Loss Cfwd Bridge
C7: Corporation Loss Continuity and Application
C9: Schedule 4 Loss Carry Forward - Bridge Year
C11: Non-Capital Loss Carry Forward Deduction | G11: Total
C12: Actual Historical | F12: H4 | G12: ='H4 Sch 4 Loss Cfwd Hist'!H14 -> 0
C13: Amount to be used in Bridge Year | F13: B1 | G13: =IF('B1 Sch 1 Taxable Income Bridge'!F104<0,0,IF('B1 Sch 1 Taxable Income Bridge'!F104>G12,G12,'B1 Sch 1 Taxable Income Bridge'!F104)) -> 0
C14: Loss Carry Forward Generated in Bridge Year (if any) | F14: B1 | G14: =IF('B1 Sch 1 Taxable Income Bridge'!F104<0, 'B1 Sch 1 Taxable Income Bridge'!F104*-1, 0) -> 0
C15: Other Adjustments
C16: Balance available for use post Bridge Year | F16: calculated | G16: =G12-G13+G14+G15 -> 0 | H16: T4
C18: Net Capital Loss Carry Forward Deduction | G18: Total
C19: Actual Historical | F19: H4 | G19: ='H4 Sch 4 Loss Cfwd Hist'!H17 -> 0
C20: Amount to be used in Bridge Year
C21: Loss Carry Forward Generated in Bridge Year (if any) | F21: B1
C22: Other Adjustments
C23: Balance available for use post Bridge Year | F23: calculated | G23: =G19-G20+G21+G22 -> 0 | H23: T4

Sheet B8 Sch 8 CCA Bridge
B7: Schedule 8 CCA - Bridge Year
E8: /C | F8: /C | G8: /C | L8: /C | N8: /C | P8: /C | Q8: /C | U8: /C | W8: /C
B9: (1) Class | C9: Class Description | D9: Working Paper Reference | E9: (2) Undepreciated capital cost (UCC) at the beginning of the bridge year | F9: (3) Cost of acquisitions during the year (new property must be available for use, except CWIP) | G9: (4) Cost of acquisitions from column 3 that are accelerated investment incentive property (AIIP) | H9: (5) Adjustments and transfers (enter amounts that will reduce the UCC as negatives) | I9: (6) Amount from column 5 that is assistance received or receivable during the year for a property, subsequent to its disposition | J9: (7) Amount from column 5 that is repaid during the year for a property, subsequent to its disposition | K9: (8) Proceeds of dispositions | L9: (9) UCC (column 2 plus column 3 plus or minus column 5 minus column 8) | M9: (10) Proceeds of disposition available to reduce the UCC of AIIP (column 8 plus column 6 minus column 3 plus column 4 minus column 7) (if negative, enter "0") | N9: (11) Net capital cost additions of AIIP acquired during the year (column 4 minus column 10) (if negative, enter "0") | O9: Relevant factor | P9: (12) UCC adjustment for AIIP acquired during the year (column 11 multiplied by the relevant factor) | Q9: (13) UCC adjustment for non-AIIP acquired during the year (0.5 multiplied by the result of column 3 minus column 4 minus column 6 plus column 7 minus column 8) (if negative, enter "0") | R9: (14) CCA Rate % | S9: (15) Recapture of CCA | T9: (16) Terminal Loss | U9: (17) CCA (for declining balance method, the result of column 9 plus column 12 minus column 13, multiplied by column 14) | W9: (18) UCC at the end of the bridge year (column 9 minus column 17) | X9: Working Paper Reference
B10: =IF(ISBLANK('H8 Sch 8 CCA Hist'!C12), "", 'H8 Sch 8 CCA Hist'!C12) -> 1 | C10: =IF(ISBLANK('H8 Sch 8 CCA Hist'!D12), "", 'H8 Sch 8 CCA Hist'!D12) -> Buildings, Distribution System (acq'd post 1987) | D10: H8 | E10: =IF(ISBLANK('H8 Sch 8 CCA Hist'!E12),0, 'H8 Sch 8 CCA Hist'!G12) -> 912971553 | F10: 21580394 | G10: 21565498 | L10: =IFERROR(E10+F10+H10-K10,0) -> 934551947 | M10: =IF((K10+I10-F10+G10-J10)<0,0,(K10+I10-F10+G10-J10)) -> 0 | N10: =IF((G10-M10)<0,0,(G10-M10)) -> 21565498 | O10: 0 | P10: =N10*O10 -> 0 | Q10: =IF((0.5*(F10-G10-I10+J10-K10))<0,0,(0.5*(F10-G10-I10+J10-K10))) -> 7448 | R10: 0.04 | U10: =IF(OR(L10<0,T10>0),0,(L10+P10-Q10)*R10) -> 37381779.96 | W10: =IF(L10<0,0,L10-T10-U10) -> 897170167 | X10: T8
B11: =IF(ISBLANK('H8 Sch 8 CCA Hist'!C13), "", 'H8 Sch 8 CCA Hist'!C13) -> 1b | C11: =IF(ISBLANK('H8 Sch 8 CCA Hist'!D13), "", 'H8 Sch 8 CCA Hist'!D13) -> Non-Residential Buildings [Reg. 1100(1)(a.1) election] | D11: H8 | E11: =IF(ISBLANK('H8 Sch 8 CCA Hist'!E13),0, 'H8 Sch 8 CCA Hist'!G13) -> 0 | L11: =IFERROR(E11+F11+H11-K11,"") -> 0 | M11: =IF((K11+I11-F11+G11-J11)<0,0,(K11+I11-F11+G11-J11)) -> 0 | N11: =IF((G11-M11)<0,0,(G11-M11)) -> 0 | O11: 0 | P11: =N11*O11 -> 0 | Q11: =IF((0.5*(F11-G11-I11+J11-K11))<0,0,(0.5*(F11-G11-I11+J11-K11))) -> 0 | R11: 0.06 | U11: =IF(OR(L11<0,T11>0),0,(L11+P11-Q11)*R11) -> 0 | W11: =IF(L11<0,0,L11-T11-U11) -> 0 | X11: T8
B12: =IF(ISBLANK('H8 Sch 8 CCA Hist'!C14), "", 'H8 Sch 8 CCA Hist'!C14) -> 2 | C12: =IF(ISBLANK('H8 Sch 8 CCA Hist'!D14), "", 'H8 Sch 8 CCA Hist'!D14) -> Distribution System (acq'd pre 1988) | D12: H8 | E12: =IF(ISBLANK('H8 Sch 8 CCA Hist'!E14),0, 'H8 Sch 8 CCA Hist'!G14) -> 166817528 | L12: 166817528 | M12: 0 | N12: 0 | P12: 0 | Q12: 0 | R12: 0.06 | U12: 10009051.68 | W12: 156808476.3 | X12: T8
B13: =IF(ISBLANK('H8 Sch 8 CCA Hist'!C15), "", 'H8 Sch 8 CCA Hist'!C15) -> 3 | C13: =IF(ISBLANK('H8 Sch 8 CCA Hist'!D15), "", 'H8 Sch 8 CCA Hist'!D15) -> Buildings (acq'd pre 1988) | D13: H8 | E13: =IF(ISBLANK('H8 Sch 8 CCA Hist'!E15),0, 'H8 Sch 8 CCA Hist'!G15) -> 0 | L13: 0 | M13: 0 | N13: 0 | P13: 0 | Q13: 0 | R13: 0.05 | U13: 0 | W13: 0 | X13: T8
B14: =IF(ISBLANK('H8 Sch 8 CCA Hist'!C16), "", 'H8 Sch 8 CCA Hist'!C16) -> 6 | C14: =IF(ISBLANK('H8 Sch 8 CCA Hist'!D16), "", 'H8 Sch 8 CCA Hist'!D16) -> Certain Buildings; Fences | D14: H8 | E14: =IF(ISBLANK('H8 Sch 8 CCA Hist'!E16),0, 'H8 Sch 8 CCA Hist'!G16) -> 2111584 | L14: 2111584 | M14: 0 | N14: 0 | O14: 0 | P14: 0 | Q14: 0 | R14: 0.1 | U14: 211158.4 | W14: 1900425.6 | X14: T8
B15: =IF(ISBLANK('H8 Sch 8 CCA Hist'!C17), "", 'H8 Sch 8 CCA Hist'!C17) -> 8 | C15: =IF(ISBLANK('H8 Sch 8 CCA Hist'!D17), "", 'H8 Sch 8 CCA Hist'!D17) -> General Office Equipment, Furniture, Fixtures | D15: H8 | E15: =IF(ISBLANK('H8 Sch 8 CCA Hist'!E17),0, 'H8 Sch 8 CCA Hist'!G17) -> 20612426 | F15: 6013641 | G15: 5986797 | L15: 26626067 | M15: 0 | N15: 5986797 | O15: 0 | P15: 0 | Q15: 13422 | R15: 0.2 | U15: 5322529 | W15: 21303538 | X15: T8
B16: =IF(ISBLANK('H8 Sch 8 CCA Hist'!C18), "", 'H8 Sch 8 CCA Hist'!C18) -> 10 | C16: =IF(ISBLANK('H8 Sch 8 CCA Hist'!D18), "", 'H8 Sch 8 CCA Hist'!D18) -> Motor Vehicles, Fleet | D16: H8 | E16: =IF(ISBLANK('H8 Sch 8 CCA Hist'!E18),0, 'H8 Sch 8 CCA Hist'!G18) -> 6547767 | F16: 9281149 | G16: 9281149 | L16: 15828916 | M16: 0 | N16: 9281149 | O16: 0 | P16: 0 | Q16: 0 | R16: 0.3 | U16: 4748674.8 | W16: 11080241.2 | X16: T8
B17: =IF(ISBLANK('H8 Sch 8 CCA Hist'!C19), "", 'H8 Sch 8 CCA Hist'!C19) -> 10.1 | C17: =IF(ISBLANK('H8 Sch 8 CCA Hist'!D19), "", 'H8 Sch 8 CCA Hist'!D19) -> Certain Automobiles | D17: H8 | E17: =IF(ISBLANK('H8 Sch 8 CCA Hist'!E19),0, 'H8 Sch 8 CCA Hist'!G19) -> 34280 | L17: 34280 | M17: 0 | N17: 0 | O17: 0 | P17: 0 | Q17: 0 | R17: 0.3 | U17: =IF(OR(L17<0,T17>0),0,(L17+P17-Q17)*R17)+4 -> 10288 | W17: 23992 | X17: T8
B18: =IF(ISBLANK('H8 Sch 8 CCA Hist'!C20), "", 'H8 Sch 8 CCA Hist'!C20) -> 12 | C18: =IF(ISBLANK('H8 Sch 8 CCA Hist'!D20), "", 'H8 Sch 8 CCA Hist'!D20) -> Computer Application Software (Non-Systems) | D18: H8 | E18: =IF(ISBLANK('H8 Sch 8 CCA Hist'!E20),0, 'H8 Sch 8 CCA Hist'!G20) -> 14820 | F18: 64087066 | G18: 64017547 | L18: 64101886 | M18: 0 | N18: 64017547 | O18: 0 | P18: 0 | Q18: 34759.5 | R18: 1 | U18: 64067126.5 | W18: 34759.5 | X18: T8
B19: 13 1 | C19: =IF(ISBLANK('H8 Sch 8 CCA Hist'!D21), "", 'H8 Sch 8 CCA Hist'!D21) -> Lease # 1 | D19: H8 | E19: =IF(ISBLANK('H8 Sch 8 CCA Hist'!E21),0, 'H8 Sch 8 CCA Hist'!G21) -> 96922 | L19: 96922 | M19: 0 | N19: 0 | O19: 0 | P19: 0 | Q19: 0 | R19: NA | U19: 21209 | W19: 75713 | X19: T8
B20: 13 2 | C20: =IF(ISBLANK('H8 Sch 8 CCA Hist'!D22), "", 'H8 Sch 8 CCA Hist'!D22) -> Lease # 2 | D20: H8 | E20: =IF(ISBLANK('H8 Sch 8 CCA Hist'!E22),0, 'H8 Sch 8 CCA Hist'!G22) -> 10880 | L20: 10880 | M20: 0 | N20: 0 | O20: 0 | P20: 0 | Q20: 0 | R20: NA | U20: 7254 | W20: 3626 | X20: T8
B21: 13 3 | C21: =IF(ISBLANK('H8 Sch 8 CCA Hist'!D23), "", 'H8 Sch 8 CCA Hist'!D23) -> Lease # 3 | D21: H8 | E21: =IF(ISBLANK('H8 Sch 8 CCA Hist'!E23),0, 'H8 Sch 8 CCA Hist'!G23) -> 0 | F21: 9017 | G21: 9017 | L21: 9017 | M21: 0 | N21: 9017 | O21: 0 | P21: 0 | Q21: 0 | R21: NA | U21: 1803 | W21: 7214 | X21: T8
B22: 13 4 | C22: =IF(ISBLANK('H8 Sch 8 CCA Hist'!D24), "", 'H8 Sch 8 CCA Hist'!D24) -> Lease # 4 | D22: H8 | E22: =IF(ISBLANK('H8 Sch 8 CCA Hist'!E24),0, 'H8 Sch 8 CCA Hist'!G24) -> 0 | L22: 0 | M22: 0 | N22: 0 | O22: 0 | P22: 0 | Q22: 0 | R22: NA | W22: 0 | X22: T8
B23: =IF(ISBLANK('H8 Sch 8 CCA Hist'!C25), "", 'H8 Sch 8 CCA Hist'!C25) -> 14 | C23: =IF(ISBLANK('H8 Sch 8 CCA Hist'!D25), "", 'H8 Sch 8 CCA Hist'!D25) -> Limited Period Patents, Franchises, Concessions or Licences | D23: H8 | E23: =IF(ISBLANK('H8 Sch 8 CCA Hist'!E25),0, 'H8 Sch 8 CCA Hist'!G25) -> 0 | L23: 0 | M23: 0 | N23: 0 | O23: 0 | P23: 0 | Q23: 0 | R23: NA | U23: 0 | W23: 0 | X23: T8
B24: 14.1 | C24: Eligible Capital Property (acq'd pre Jan 1, 2017) | D24: H8 | E24: =IF(ISBLANK('H8 Sch 8 CCA Hist'!E26),0, 'H8 Sch 8 CCA Hist'!G26) -> 31133391 | L24: 31133391 | M24: 0 | N24: 0 | P24: 0 | Q24: 0 | R24: 0.07 | U24: =IF(OR(L24<0,T24>0),0,(L24+P24-Q24)*R24) -> 2179337.37 | W24: 28954053.63 | X24: T8
B25: 14.1 | C25: Eligible Capital Property (acq'd post Jan 1, 2017) | D25: H8 | E25: =IF(ISBLANK('H8 Sch 8 CCA Hist'!E27),0, 'H8 Sch 8 CCA Hist'!G27) -> 143953241 | F25: 4410803 | G25: 4410803 | L25: 148364044 | M25: 0 | N25: 4410803 | O25: 0 | P25: 0 | Q25: 0 | R25: 0.05 | U25: 7418202.2 | W25: 140945841.8 | X25: T8
B26: =IF(ISBLANK('H8 Sch 8 CCA Hist'!C28), "", 'H8 Sch 8 CCA Hist'!C28) -> 17 | C26: =IF(ISBLANK('H8 Sch 8 CCA Hist'!D28), "", 'H8 Sch 8 CCA Hist'!D28) -> Elec. Generation Equip. (Non-Bldng, acq'd post Feb 27/00); Roads, Lots, Storage | D26: H8 | E26: =IF(ISBLANK('H8 Sch 8 CCA Hist'!E28),0, 'H8 Sch 8 CCA Hist'!G28) -> 20661670 | L26: 20661670 | M26: 0 | N26: 0 | O26: 0 | P26: 0 | Q26: 0 | R26: 0.08 | U26: 1652933.6 | W26: 19008736.4 | X26: T8
B27: =IF(ISBLANK('H8 Sch 8 CCA Hist'!C29), "", 'H8 Sch 8 CCA Hist'!C29) -> 42 | C27: =IF(ISBLANK('H8 Sch 8 CCA Hist'!D29), "", 'H8 Sch 8 CCA Hist'!D29) -> Fibre Optic Cable | D27: H8 | E27: =IF(ISBLANK('H8 Sch 8 CCA Hist'!E29),0, 'H8 Sch 8 CCA Hist'!G29) -> 11656889 | F27: 1488596 | G27: 1483843 | L27: 13145485 | M27: 0 | N27: 1483843 | O27: 0 | P27: 0 | Q27: 2376.5 | R27: 0.12 | U27: 1577173.02 | W27: 11568311.98 | X27: T8
B28: =IF(ISBLANK('H8 Sch 8 CCA Hist'!C30), "", 'H8 Sch 8 CCA Hist'!C30) -> 43.1 | C28: =IF(ISBLANK('H8 Sch 8 CCA Hist'!D30), "", 'H8 Sch 8 CCA Hist'!D30) -> Certain Clean Energy/Energy-Efficient Generation Equipment | D28: H8 | E28: =IF(ISBLANK('H8 Sch 8 CCA Hist'!E30),0, 'H8 Sch 8 CCA Hist'!G30) -> 8623 | F28: 265309 | G28: 265309 | L28: 273932 | M28: 0 | N28: 265309 | O28: 1.5 | P28: 397963.5 | Q28: 0 | R28: 0.3 | U28: =IF(OR(L28<0,T28>0),0,(L28+P28-Q28)*R28) -> 201568.65 | W28: 72363.35 | X28: T8
B29: =IF(ISBLANK('H8 Sch 8 CCA Hist'!C31), "", 'H8 Sch 8 CCA Hist'!C31) -> 43.2 | C29: =IF(ISBLANK('H8 Sch 8 CCA Hist'!D31), "", 'H8 Sch 8 CCA Hist'!D31) -> Certain Clean Energy/Energy-Efficient Generation Equipment | D29: H8 | E29: =IF(ISBLANK('H8 Sch 8 CCA Hist'!E31),0, 'H8 Sch 8 CCA Hist'!G31) -> 0 | F29: 1024675 | G29: 1024675 | L29: 1024675 | M29: 0 | N29: 1024675 | O29: 0.5 | P29: 512337.5 | Q29: 0 | R29: 0.5 | U29: 768506.25 | W29: 256168.75 | X29: T8
B30: =IF(ISBLANK('H8 Sch 8 CCA Hist'!C32), "", 'H8 Sch 8 CCA Hist'!C32) -> 45 | C30: =IF(ISBLANK('H8 Sch 8 CCA Hist'!D32), "", 'H8 Sch 8 CCA Hist'!D32) -> Computers & System Software (acq'd post Mar 22/04 and pre Mar 19/07) | D30: H8 | E30: =IF(ISBLANK('H8 Sch 8 CCA Hist'!E32),0, 'H8 Sch 8 CCA Hist'!G32) -> 207 | L30: 207 | M30: 0 | N30: 0 | P30: 0 | Q30: 0 | R30: 0.45 | U30: 93.15 | W30: 113.85 | X30: T8
B31: =IF(ISBLANK('H8 Sch 8 CCA Hist'!C33), "", 'H8 Sch 8 CCA Hist'!C33) -> 46 | C31: =IF(ISBLANK('H8 Sch 8 CCA Hist'!D33), "", 'H8 Sch 8 CCA Hist'!D33) -> Data Network Infrastructure Equipment (acq'd post Mar 22/04) | D31: H8 | E31: =IF(ISBLANK('H8 Sch 8 CCA Hist'!E33),0, 'H8 Sch 8 CCA Hist'!G33) -> 4615966 | F31: 35370 | G31: 35370 | L31: 4651336 | M31: 0 | N31: 35370 | O31: 0 | P31: 0 | Q31: 0 | R31: 0.3 | U31: 1395400.8 | W31: 3255935.2 | X31: T8
B32: =IF(ISBLANK('H8 Sch 8 CCA Hist'!C34), "", 'H8 Sch 8 CCA Hist'!C34) -> 47 | C32: =IF(ISBLANK('H8 Sch 8 CCA Hist'!D34), "", 'H8 Sch 8 CCA Hist'!D34) -> Distribution System (acq'd post Feb 22/05) | D32: H8 | E32: =IF(ISBLANK('H8 Sch 8 CCA Hist'!E34),0, 'H8 Sch 8 CCA Hist'!G34) -> 3047245748 | F32: 478708479 | G32: 477690162 | L32: 3525954227 | M32: 0 | N32: 477690162 | O32: 0 | P32: 0 | Q32: 509158.5 | R32: 0.08 | U32: 282035605.5 | W32: 3243918622 | X32: T8
B33: =IF(ISBLANK('H8 Sch 8 CCA Hist'!C35), "", 'H8 Sch 8 CCA Hist'!C35) -> 50 | C33: =IF(ISBLANK('H8 Sch 8 CCA Hist'!D35), "", 'H8 Sch 8 CCA Hist'!D35) -> General Purpose Computer Hardware & Software (acq'd post Mar 18/07) | D33: H8 | E33: =IF(ISBLANK('H8 Sch 8 CCA Hist'!E35),0, 'H8 Sch 8 CCA Hist'!G35) -> 4996766 | F33: 15161329 | G33: 15143254 | L33: 20158095 | M33: 0 | N33: 15143254 | O33: 0 | P33: 0 | Q33: 9037.5 | R33: 0.55 | U33: 11081981.62 | W33: 9076113.375 | X33: T8
B34: =IF(ISBLANK('H8 Sch 8 CCA Hist'!C36), "", 'H8 Sch 8 CCA Hist'!C36) -> 95 | C34: =IF(ISBLANK('H8 Sch 8 CCA Hist'!D36), "", 'H8 Sch 8 CCA Hist'!D36) -> CWIP | D34: H8 | E34: =IF(ISBLANK('H8 Sch 8 CCA Hist'!E36),0, 'H8 Sch 8 CCA Hist'!G36) -> 481282199 | L34: 481282199 | M34: 0 | N34: 0 | O34: 0 | P34: 0 | Q34: 0 | R34: 0 | U34: 0 | W34: 481282199 | X34: T8
B35: 54 | C35: Zero-Emission Vehicles | D35: H8 | E35: =IF(ISBLANK('H8 Sch 8 CCA Hist'!E37),0, 'H8 Sch 8 CCA Hist'!G37) -> 0 | F35: 2682995 | G35: 2682995 | L35: 2682995 | M35: 0 | N35: 2682995 | O35: 1.5 | P35: 4024492.5 | Q35: 0 | R35: 0.3 | U35: 2012246.25 | W35: 670748.75 | X35: T8
B36: =IF(ISBLANK('H8 Sch 8 CCA Hist'!C38), "", 'H8 Sch 8 CCA Hist'!C38) ->  | C36: =IF(ISBLANK('H8 Sch 8 CCA Hist'!D38), "", 'H8 Sch 8 CCA Hist'!D38) ->  | D36: H8 | E36: =IF(ISBLANK('H8 Sch 8 CCA Hist'!E38),0, 'H8 Sch 8 CCA Hist'!G38) -> 0 | L36: 0 | M36: 0 | N36: 0 | P36: 0 | Q36: 0 | W36: 0 | X36: T8
B37: =IF(ISBLANK('H8 Sch 8 CCA Hist'!C39), "", 'H8 Sch 8 CCA Hist'!C39) ->  | C37: =IF(ISBLANK('H8 Sch 8 CCA Hist'!D39), "", 'H8 Sch 8 CCA Hist'!D39) ->  | D37: H8 | E37: =IF(ISBLANK('H8 Sch 8 CCA Hist'!E39),0, 'H8 Sch 8 CCA Hist'!G39) -> 0 | L37: 0 | M37: 0 | N37: 0 | P37: 0 | Q37: 0 | W37: 0 | X37: T8
B38: =IF(ISBLANK('H8 Sch 8 CCA Hist'!C40), "", 'H8 Sch 8 CCA Hist'!C40) ->  | C38: =IF(ISBLANK('H8 Sch 8 CCA Hist'!D40), "", 'H8 Sch 8 CCA Hist'!D40) ->  | D38: H8 | E38: =IF(ISBLANK('H8 Sch 8 CCA Hist'!E40),0, 'H8 Sch 8 CCA Hist'!G40) -> 0 | L38: 0 | M38: 0 | N38: 0 | P38: 0 | Q38: 0 | W38: 0 | X38: T8
B39: =IF(ISBLANK('H8 Sch 8 CCA Hist'!C41), "", 'H8 Sch 8 CCA Hist'!C41) ->  | C39: =IF(ISBLANK('H8 Sch 8 CCA Hist'!D41), "", 'H8 Sch 8 CCA Hist'!D41) ->  | D39: H8 | E39: =IF(ISBLANK('H8 Sch 8 CCA Hist'!E41),0, 'H8 Sch 8 CCA Hist'!G41) -> 0 | L39: 0 | M39: 0 | N39: 0 | P39: 0 | Q39: 0 | W39: 0 | X39: T8
B40: =IF(ISBLANK('H8 Sch 8 CCA Hist'!C42), "", 'H8 Sch 8 CCA Hist'!C42) ->  | C40: =IF(ISBLANK('H8 Sch 8 CCA Hist'!D42), "", 'H8 Sch 8 CCA Hist'!D42) ->  | D40: H8 | E40: =IF(ISBLANK('H8 Sch 8 CCA Hist'!E42),0, 'H8 Sch 8 CCA Hist'!G42) -> 0 | L40: 0 | M40: 0 | N40: 0 | P40: 0 | Q40: 0 | W40: 0 | X40: T8
B41: =IF(ISBLANK('H8 Sch 8 CCA Hist'!C43), "", 'H8 Sch 8 CCA Hist'!C43) ->  | C41: =IF(ISBLANK('H8 Sch 8 CCA Hist'!D43), "", 'H8 Sch 8 CCA Hist'!D43) ->  | D41: H8 | E41: =IF(ISBLANK('H8 Sch 8 CCA Hist'!E43),0, 'H8 Sch 8 CCA Hist'!G43) -> 0 | L41: 0 | M41: 0 | N41: 0 | P41: 0 | Q41: 0 | W41: 0 | X41: T8
B42: =IF(ISBLANK('H8 Sch 8 CCA Hist'!C44), "", 'H8 Sch 8 CCA Hist'!C44) ->  | C42: =IF(ISBLANK('H8 Sch 8 CCA Hist'!D44), "", 'H8 Sch 8 CCA Hist'!D44) ->  | D42: H8 | E42: =IF(ISBLANK('H8 Sch 8 CCA Hist'!E44),0, 'H8 Sch 8 CCA Hist'!G44) -> 0 | L42: =IFERROR(E42+F42+H42-K42,"") -> 0 | M42: 0 | N42: 0 | P42: 0 | Q42: 0 | W42: 0 | X42: T8
C43: TOTALS | E43: =SUM(E10:E42) -> 4854772460 | F43: =SUM(F10:F42) -> 604748823 | G43: =SUM(G10:G42) -> 603596419 | H43: 0 | I43: 0 | J43: 0 | K43: 0 | L43: =SUM(L10:L42) -> 5459521283 | M43: =SUM(M10:M42) -> 0 | N43: =SUM(N10:N42) -> 603596419 | P43: 4934793.5 | Q43: 576202 | S43: =SUM(S10:S42) -> 0 | T43: =SUM(T10:T42) -> 0 | U43: =SUM(U10:U42) -> 432103922.7 | V43: B1 | W43: =SUM(W10:W42) -> 5027417360
B45: For additional details and guidance on calculating amounts in Schedule 8, refer to the notes to the Canada Revenue Agency published Schedule 8 - Capital Cost Allowance (CCA) (2018 and later tax years):
B46: https://www.canada.ca/content/dam/cra-arc/formspubs/pbg/t2sch8/t2sch8-19e.pdf

Sheet B13 Sch 13 Reserves Bridge
C7: Schedule 13 Tax Reserves - Bridge Year
C9: Continuity of Reserves
I10: Bridge Year Adjustments
C11: Description | D11: Reference | E11: Historical Utility Only | F11: Eliminate Amounts Not Relevant for Bridge Year | G11: Adjusted Utility Balance | I11: Additions | J11: Disposals | K11: Balance for Bridge Year | M11: Change During the Year | N11: Disallowed Expenses
C13: Capital gains reserves ss.40(1) | D13: H13 | E13: ='H13 Sch 13 Reserves Hist'!F15 -> 21240453 | G13: =SUM(E13:F13) -> 21240453 | K13: =G13+I13-J13 -> 21240453 | L13: T13 | M13: =+K13-G13 -> 0 | O13: /C
C14: Tax Reserves Not Deducted for Accounting Purposes
C15: Reserve for doubtful accounts ss. 20(1)(l) | D15: H13 | E15: ='H13 Sch 13 Reserves Hist'!F17 -> 0 | G15: =SUM(E15:F15) -> 0 | K15: =G15+I15-J15 -> 0 | L15: T13 | M15: =+K15-G15 -> 0
C16: Reserve for goods and services not delivered ss. 20(1)(m) | D16: H13 | E16: ='H13 Sch 13 Reserves Hist'!F18 -> 0 | G16: 0 | K16: 0 | L16: T13 | M16: 0
C17: Reserve for unpaid amounts ss. 20(1)(n) | D17: H13 | E17: ='H13 Sch 13 Reserves Hist'!F19 -> 0 | G17: 0 | K17: 0 | L17: T13 | M17: 0
C18: Debt & share issue expenses ss. 20(1)(e) | D18: H13 | E18: ='H13 Sch 13 Reserves Hist'!F20 -> 0 | G18: 0 | K18: 0 | L18: T13 | M18: 0
C19: Other tax reserves | D19: H13 | E19: ='H13 Sch 13 Reserves Hist'!F21 -> 0 | G19: 0 | K19: 0 | L19: T13 | M19: 0
E20: ='H13 Sch 13 Reserves Hist'!F25 -> 0 | G20: 0 | K20: 0 | M20: 0
E21: ='H13 Sch 13 Reserves Hist'!F26 -> 0 | G21: 0 | K21: 0 | M21: 0
C22: Total | E22: =SUM(E15:E21) -> 0 | F22: 0 | G22: 0 | H22: B1 | I22: 0 | J22: 0 | K22: 0 | L22: B1 | M22: 0 | N22: 0
E23: 0
C24: Financial statement reserves (not deductible for tax purposes)
C25: General Reserve for Inventory Obsolescence (non-specific) | D25: H13 | E25: ='H13 Sch 13 Reserves Hist'!F30 -> 0 | G25: =SUM(E25:F25) -> 0 | K25: =G25+I25-J25 -> 0 | L25: T13 | M25: =+K25-G25 -> 0
C26: General Reserve for Bad Debts | D26: H13 | E26: ='H13 Sch 13 Reserves Hist'!F31 -> 0 | G26: 0 | K26: 0 | L26: T13 | M26: 0
C27: Accrued Employee Future Benefits: | D27: H13 | E27: ='H13 Sch 13 Reserves Hist'!F32 -> 0 | G27: 0 | K27: 0 | L27: T13 | M27: 0
C28: - Medical and Life Insurance | D28: H13 | E28: ='H13 Sch 13 Reserves Hist'!F33 -> 0 | G28: 0 | K28: 0 | L28: T13 | M28: 0
C29: - Short & Long-term Disability | D29: H13 | E29: ='H13 Sch 13 Reserves Hist'!F34 -> 0 | G29: 0 | K29: 0 | L29: T13 | M29: 0
C30: - Accumulated Sick Leave | D30: H13 | E30: ='H13 Sch 13 Reserves Hist'!F35 -> 0 | G30: 0 | K30: 0 | L30: T13 | M30: 0
C31: - Termination Cost | D31: H13 | E31: ='H13 Sch 13 Reserves Hist'!F36 -> 3836254 | G31: 3836254 | J31: 641917 | K31: 3194337 | L31: T13 | M31: -641917 | O31: /C
C32: - Other Post-Employment Benefits | D32: H13 | E32: ='H13 Sch 13 Reserves Hist'!F37 -> 250638000 | G32: 250638000 | I32: =232739000-230791000 -> 1948000 | K32: 252586000 | L32: T13 | M32: 1948000 | O32: /C
C33: Provision for Environmental Costs | D33: H13 | E33: ='H13 Sch 13 Reserves Hist'!F38 -> 0 | G33: 0 | K33: 0 | L33: T13 | M33: 0
C34: Restructuring Costs | D34: H13 | E34: ='H13 Sch 13 Reserves Hist'!F39 -> 0 | G34: 0 | K34: 0 | L34: T13 | M34: 0
C35: Accrued Contingent Litigation Costs | D35: H13 | E35: ='H13 Sch 13 Reserves Hist'!F40 -> 0 | G35: 0 | K35: 0 | L35: T13 | M35: 0
C36: Accrued Self-Insurance Costs | D36: H13 | E36: ='H13 Sch 13 Reserves Hist'!F41 -> 0 | G36: 0 | K36: 0 | L36: T13 | M36: 0
C37: Other Contingent Liabilities | D37: H13 | E37: ='H13 Sch 13 Reserves Hist'!F42 -> 0 | G37: 0 | K37: 0 | L37: T13 | M37: 0
C38: Bonuses Accrued and Not Paid Within 180 Days of Year-End ss. 78(4) | D38: H13 | E38: ='H13 Sch 13 Reserves Hist'!F43 -> 0 | G38: 0 | K38: 0 | L38: T13 | M38: 0
C39: Unpaid Amounts to Related Person and Not Paid Within 3 Taxation Years ss. 78(1) | D39: H13 | E39: ='H13 Sch 13 Reserves Hist'!F44 -> 0 | G39: 0 | K39: 0 | L39: T13 | M39: 0
C40: Other | D40: H13 | E40: ='H13 Sch 13 Reserves Hist'!F45 -> 0 | G40: 0 | K40: 0 | L40: T13 | M40: 0
E41: ='H13 Sch 13 Reserves Hist'!F49 -> 0 | G41: =SUM(E41:F41) -> 0 | K41: 0 | M41: =+K41-G41 -> 0
E42: ='H13 Sch 13 Reserves Hist'!F50 -> 0 | G42: =SUM(E42:F42) -> 0 | K42: 0 | M42: =+K42-G42 -> 0
C43: Total | E43: =SUM(E25:E42) -> 254474254 | F43: =SUM(F25:F42) -> 0 | G43: 254474254 | H43: B1 | I43: 1948000 | J43: 641917 | K43: 255780337 | L43: B1 | M43: 1306083 | N43: 0
E44: 0
